Cogmind - Beta 12 @@@ ROGUE MODE // 2023.03.08 @ 18:09:44 Player: PhazeDK Result: Destroyed by H-61 Shepherd with Heavy Assault Cannon Performance ------------- Evolutions (2) 1000 Regions Visited (7) 1400 Robots Destroyed (26) 130 Value Destroyed (466) 466 Prototype IDs (24) 480 Alien Tech Used (0) 0 Bonus (300) 300 TOTAL SCORE: 3776 Bonus ------- Aligned with FarCom 300 Cogmind --------- Core Integrity 0/550 Matter 282/300 Energy 25/100 System Corruption 0% Temperature Cool (0) Movement Core (100) Ox1 Location -8/Materials Parts ------- > --- POWER (1) -------- (None) > --- PROPULSION (5) --- (None) > --- UTILITY (3) ------ Small Storage Unit Terrain Scanner > --- WEAPON (2) ------- (None) > --- INVENTORY (8) ---- Light Ion Engine Disposable Heat Sink Advanced Terrain Scan Processor Peak State ------------ > --- POWER ------------ Light Ion Engine > --- PROPULSION ------- Flight Unit Flight Unit Flight Unit Flight Unit Flight Unit > --- UTILITY ---------- Disposable Heat Sink Small Storage Unit Modified TNC > --- WEAPON ----------- Improved EM Shotgun Heavy Flail > --- INVENTORY -------- Light Ion Engine Nuclear Core Reinforced Deuterium Engine Light Fission Core Small Laser Rocket Launcher [Rating: 22] Favorites ----------- Power Light Ion Engine Engine Light Ion Engine Propulsion Flight Unit Wheel Compact Wheel Flight Unit Flight Unit Utility Small Storage Unit Device Disposable Heat Sink Storage Small Storage Unit Processor Modified TNC Weapon Improved EM Shotgun Energy Gun Improved EM Shotgun Ballistic Gun Light Assault Rifle Launcher Rocket Launcher Impact Weapon Heavy Flail Build | -11 -10 -10 -9 -9 -9 -8 -8 ------- Run | Jun Mat Min Mat Min Exi Min Mat Slots Evolved 4 | . . . 2 . . . 2 Power . | . . . . . . . . Propulsion 3 | . . . 2 . . . 1 Utility 1 | . . . . . . . 1 Weapon . | . . . . . . . . Parts Attached 30 | 6 7 4 4 . . . 9 Power 2 | 1 . 1 . . . . . Engine 2 | 1 . 1 . . . . . Core . | . . . . . . . . Reactor . | . . . . . . . . Propulsion 9 | 2 1 2 2 . . . 2 Treads . | . . . . . . . . Leg . | . . . . . . . . Wheel 3 | 2 1 . . . . . . Hover . | . . . . . . . . Flight 6 | . . 2 2 . . . 2 Utility 8 | 2 2 . 2 . . . 2 Device 4 | 1 1 . 1 . . . 1 Storage 3 | 1 1 . 1 . . . . Processor 1 | . . . . . . . 1 Hackware . | . . . . . . . . Protection . | . . . . . . . . Artifact . | . . . . . . . . Weapon 11 | 1 4 1 . . . . 5 Energy Gun 7 | . 4 1 . . . . 2 Energy Cannon . | . . . . . . . . Ballistic Gun 1 | 1 . . . . . . . Ballistic Cannon . | . . . . . . . . Launcher 1 | . . . . . . . 1 Special Weapon . | . . . . . . . . Impact Weapon 2 | . . . . . . . 2 Slashing Weapon . | . . . . . . . . Piercing Weapon . | . . . . . . . . Special Melee Weapon . | . . . . . . . . Unidentified Prototypes 1 | . 1 . . . . . . Parts Lost 13 | . 3 . . . . . 10 Power 1 | . . . . . . . 1 Propulsion 7 | . 1 . . . . . 6 Utility 2 | . 1 . . . . . 1 Weapon 3 | . 1 . . . . . 2 Highest Loss Streak 8 | . 2 . . . . . 8 To Critical Strikes . | . . . . . . . . Average Slot Usage (%) 89 | . 84 86 89 100 100 100 90 Engine 11 | . 14 14 11 11 11 11 8 Wheel 8 | . 21 14 . . . . . Flight 24 | . . 12 44 44 44 44 37 Device 8 | . 8 7 2 11 11 11 9 Storage 10 | . 14 7 9 11 11 11 9 Processor 2 | . . . . . . . 9 Energy Gun 16 | . 16 27 22 22 22 22 5 Ballistic Gun 2 | . 8 . . . . . . Launcher 1 | . . . . . . . 3 Impact Weapon 2 | . . . . . . . 8 Naked Turns . | . . . . . . . . Heaviest Build 22 | 12 22 22 13 13 13 13 16 Greatest Support 26 | 26 26 26 16 16 16 16 20 Greatest Overweight (x) 4 | . 1 4 . . . . 1 Average Overweight (x) . | . . . . . . . . Largest Inventory Capacity 10 | 8 10 10 8 8 8 8 8 Average Capacity 7 | 6 8 7 7 8 8 8 8 Most Carried 10 | 7 10 10 4 3 7 7 8 Average Carried 6 | 4 6 7 2 3 6 7 6 Final Capacity 10 | 8 10 5 8 8 8 8 8 Final Carried 10 | 7 10 5 3 3 7 7 3 Class Distribution -------------------- 49% | Mutant 33% | Scavenger-Sprinter 15% | Scavenger-Scout Dominant Class ---------------- Mutant | -10/Materials Mutant | -10/Mines Scavenger-Sprinter | -9/Materials Scavenger-Sprinter | -9/Mines Scavenger-Sprinter | -9/Exiles Scavenger-Sprinter | -8/Mines Scavenger-Scout | -8/Materials Resources | -11 -10 -10 -9 -9 -9 -8 -8 ----------- Run | Jun Mat Min Mat Min Exi Min Mat Matter Collected 553 | 270 76 60 16 . 24 . 107 Remotely . | . . . . . . . . Salvage Created 751 | 109 314 152 16 . . . 160 Parts 42 | 6 13 12 2 . . . 9 Haulers Intercepted 1 | . 1 . . . . . . Recyclers Shooed 1 | 1 . . . . . . . Parts Field Recycled . | . . . . . . . . Retrieved Matter . | . . . . . . . . Parts Self-Destructed . | . . . . . . . . Prevented . | . . . . . . . . Kills | -11 -10 -10 -9 -9 -9 -8 -8 ------- Run | Jun Mat Min Mat Min Exi Min Mat Combat Hostiles Destroyed 18 | . 6 5 . . . . 7 Guns 12 | . 6 5 . . . . 1 AOE 6 | . . . . . . . 6 Classes Destroyed 9 | 2 3 . 1 . . . 3 Worker 2 | . . . . . . . 2 Tunneler 1 | 1 . . . . . . . Hauler 1 | . 1 . . . . . . Recycler 2 | 1 1 . . . . . . Mechanic 1 | . . . . . . . 1 Operator 1 | . . . 1 . . . . Swarmer 10 | . 3 3 . . . . 4 Cutter 1 | . . . . . . . 1 Grunt 7 | . 3 2 . . . . 2 Best Kill Streak 7 | 2 4 3 1 . . . 7 Combat Bots Only 6 | . 3 3 . . . . 6 Max Kills in Single Turn 5 | 1 1 2 1 . . . 5 Gunslinging . | . . . . . . . . Exploded 4 | . . . . . . . 4 Melee . | . . . . . . . . Uniques/NPCs Destroyed . | . . . . . . . . Combat | -11 -10 -10 -9 -9 -9 -8 -8 -------- Run | Jun Mat Min Mat Min Exi Min Mat Damage Taken 1495 | . 359 209 7 . . . 920 Core 747 | . 89 98 7 . . . 553 Absorbed by Shields . | . . . . . . . . Core Remaining (%) 74 | 100 . 25 . . . 98 . Volleys Fired 79 | 10 44 9 1 . . . 15 Largest 2 | 1 2 2 2 . . . 1 Hottest 90 | 20 80 90 85 . . . 45 Shots Fired 122 | 10 77 18 2 . . . 15 Gun 115 | 10 77 18 2 . . . 8 Cannon . | . . . . . . . . Launcher 7 | . . . . . . . 7 Special . | . . . . . . . . Kinetic 44 | 10 34 . . . . . . Thermal 48 | . 43 . 1 . . . 4 Explosive 7 | . . . . . . . 7 Electromagnetic 23 | . . 18 1 . . . 4 Robot Hit Streak 11 | 3 11 6 3 . . . 6 Robot Miss Streak 6 | 2 6 5 . . . . 3 Penetration Max . | . . . . . . . . Secondary Targets 2 | . 2 . . . . . . Max Gunslinging Chain 1 | . 1 . . . . . . Shots Hit Robots 75 | 6 46 12 1 . . . 10 Core Hits 40 | 4 15 8 1 . . . 12 Critical Kills . | . . . . . . . . Critical Parts Destroyed . | . . . . . . . . Critical Strikes . | . . . . . . . . Melee Attacks 20 | . . . . . . . 20 Impact 20 | . . . . . . . 20 Slashing . | . . . . . . . . Piercing . | . . . . . . . . Sneak Attacks 2 | . . . . . . . 2 Combat Hostiles . | . . . . . . . . Follow-up Attacks . | . . . . . . . . Damage Inflicted 1593 | 56 456 232 15 . . . 834 Guns 794 | 56 456 204 15 . . . 63 Cannons . | . . . . . . . . Explosions 562 | . . 28 . . . . 534 Melee 235 | . . . . . . . 235 Ramming 2 | . . . . . . . 2 Kinetic 210 | 56 154 . . . . . . Thermal 364 | . 302 28 . . . . 34 Explosive 534 | . . . . . . . 534 Electromagnetic 248 | . . 204 15 . . . 29 Impact 235 | . . . . . . . 235 Slashing . | . . . . . . . . Piercing . | . . . . . . . . Highest Corruption . | . . . . . . . . Average Corruption . | . . . . . . . . Corruption Purged . | . . . . . . . . Corruption Blocked . | . . . . . . . . Overload Shots . | . . . . . . . . Overflow Damage 190 | . . . . . . . 190 Projectiles . | . . . . . . . . Explosions 35 | . . . . . . . 35 Melee 155 | . . . . . . . 155 Knockbacks . | . . . . . . . . Impact . | . . . . . . . . Kinetic . | . . . . . . . . Secondary . | . . . . . . . . Self-Inflicted Damage 137 | . . 39 . . . . 98 Shots 5 | . . 1 . . . . 4 Rammed 1 | . . . . . . . 1 Targets Rammed 1 | . . . . . . . 1 Kicked . | . . . . . . . . Crushed . | . . . . . . . . Highest Temperature 243 | . 98 243 27 . . . 13 Average Temperature 53 | . 40 100 13 . . . 6 Received Heat Transfer 198 | . 84 60 . . . . 54 Siege Activations . | . . . . . . . . Robots Corrupted . | . . . . . . . . Combat Hostiles . | . . . . . . . . Parts Fried 2 | . . 2 . . . . . Impact Corruptions 4 | . . . . . . . 4 Robots Melted . | . . . . . . . . Combat Hostiles . | . . . . . . . . Parts Melted . | . . . . . . . . Heat Transferred 800 | . 675 50 . . . . 75 Parts Sabotaged . | . . . . . . . . Parts Stolen . | . . . . . . . . Parts Stripped . | . . . . . . . . Power Chain Reactions 1 | . . 1 . . . . . Missiles Intercepted . | . . . . . . . . Alert | -11 -10 -10 -9 -9 -9 -8 -8 ------- Run | Jun Mat Min Mat Min Exi Min Mat Peak Influence 303 | 10 167 217 98 37 . . 303 Initial 84 | . 6 64 84 37 . . . Average 106 | 3 88 143 94 37 . . 137 Maximum Alert Level 1 | . . 1 . . . . 1 Low Security (%) 83 | 100 100 86 100 100 . 100 57 Level 1 16 | . . 13 . . . . 42 Level 2 . | . . . . . . . . Level 3 . | . . . . . . . . Level 4 . | . . . . . . . . Level 5 . | . . . . . . . . High Security . | . . . . . . . . Max Security . | . . . . . . . . Squads Dispatched 6 | . 1 . 2 . . . 3 Investigation 1 | . . . 1 . . . . Extermination . | . . . . . . . . Reinforcement 5 | . 1 . 1 . . . 3 Assault . | . . . . . . . . Garrison . | . . . . . . . . Intercept . | . . . . . . . . Searches Triggered . | . . . . . . . . Construction Impeded . | . . . . . . . . Haulers Reinforced . | . . . . . . . . Active Scanning Responses . | . . . . . . . . Cargo Convoy Interrupts . | . . . . . . . . Stealth | -11 -10 -10 -9 -9 -9 -8 -8 --------- Run | Jun Mat Min Mat Min Exi Min Mat Distress Signals 1 | . . . . . . . 1 Communications Jammed . | . . . . . . . . Distress Signals . | . . . . . . . . Times Spotted 38 | . 9 6 4 . . 3 16 Peak Tracking Total 8 | . 3 3 3 . . 3 8 Tactical Retreats 3 | . . 1 . . . . 2 Traps | -11 -10 -10 -9 -9 -9 -8 -8 ------- Run | Jun Mat Min Mat Min Exi Min Mat Traps Triggered . | . . . . . . . . Indirectly . | . . . . . . . . Trap Hack Attempts . | . . . . . . . . Triggered . | . . . . . . . . Disarmed . | . . . . . . . . Reprogrammed . | . . . . . . . . Reused . | . . . . . . . . Traps Extracted . | . . . . . . . . Installed . | . . . . . . . . Triggered . | . . . . . . . . Exploded 3 | . . . . . . . 3 Machines | -11 -10 -10 -9 -9 -9 -8 -8 ---------- Run | Jun Mat Min Mat Min Exi Min Mat Machines Disabled 2 | . . . . . . . 2 Max in Single Turn 2 | . . . . . . . 2 Machines Repaired . | . . . . . . . . Machines Sabotaged . | . . . . . . . . Overloaded Fab Kills . | . . . . . . . . Hacking | -11 -10 -10 -9 -9 -9 -8 -8 --------- Run | Jun Mat Min Mat Min Exi Min Mat Machines Accessed 9 | . 2 . 4 . 2 . 1 Terminals 7 | . 2 . 4 . . . 1 Fabricators . | . . . . . . . . Repair Stations . | . . . . . . . . Recycling Units . | . . . . . . . . Scanalyzers . | . . . . . . . . Garrison Access . | . . . . . . . . Total Hacks 25 | . 5 . 11 . 7 . 2 Successful 10 | . 1 . 2 . 7 . . Failed 15 | . 4 . 9 . . . 2 Catastrophic 1 | . . . 1 . . . . Database Lockouts . | . . . . . . . . Manual 16 | . 2 . 11 . 1 . 2 Terminals 18 | . 5 . 11 . . . 2 Fabricators . | . . . . . . . . Repair Stations . | . . . . . . . . Recycling Units . | . . . . . . . . Scanalyzers . | . . . . . . . . Garrison Access . | . . . . . . . . Terminal Hacks 10 | . 1 . 2 . 7 . . Record 6 | . . . . . 6 . . Level Access Points 2 | . 1 . 1 . . . . Zone Layout 1 | . . . 1 . . . . EX-Prototype ID Bank 1 | . . . . . 1 . . Fabricator Hacks . | . . . . . . . . Repair Station Hacks . | . . . . . . . . Recycling Unit Hacks . | . . . . . . . . Scanalyzer . | . . . . . . . . Garrison Access Hacks . | . . . . . . . . Unauthorized Hacks . | . . . . . . . . Terminals . | . . . . . . . . Fabricators . | . . . . . . . . Repair Stations . | . . . . . . . . Recycling Units . | . . . . . . . . Scanalyzers . | . . . . . . . . Garrison Access . | . . . . . . . . Data Cores Recovered 1 | . . . 1 . . . . Used 1 | . . . 1 . . . . Hacking Detections 6 | . 1 . 4 . . . 1 Full Trace Events 1 | . . . 1 . . . . Feedback Events . | . . . . . . . . Feedback Blocked . | . . . . . . . . Robot Schematics Acquired . | . . . . . . . . Robots Built . | . . . . . . . . Authchips . | . . . . . . . . Time . | . . . . . . . . Total Robot Build Rating . | . . . . . . . . Part Schematics Acquired . | . . . . . . . . Parts Built . | . . . . . . . . Authchips . | . . . . . . . . Time . | . . . . . . . . Total Part Build Rating . | . . . . . . . . Parts Repaired . | . . . . . . . . Time . | . . . . . . . . Parts Recycled . | . . . . . . . . Recycled Matter . | . . . . . . . . Retrieved Matter . | . . . . . . . . Retrieved Components . | . . . . . . . . Parts Scanalyzed . | . . . . . . . . Part Schematics Acquired . | . . . . . . . . Parts Damaged . | . . . . . . . . Bothacking | -11 -10 -10 -9 -9 -9 -8 -8 ------------ Run | Jun Mat Min Mat Min Exi Min Mat Used RIF Installer . | . . . . . . . . Robots Hacked . | . . . . . . . . Non-combat . | . . . . . . . . Combat . | . . . . . . . . Robot Hacks Applied . | . . . . . . . . Relay Couplers Released . | . . . . . . . . Fabnet Peak Effective % . | . . . . . . . . Robots Rewired . | . . . . . . . . Allies Hacked . | . . . . . . . . Hacks Repelled . | . . . . . . . . Allies | -11 -10 -10 -9 -9 -9 -8 -8 -------- Run | Jun Mat Min Mat Min Exi Min Mat Total Allies 1 | . . 1 . . . . . Largest Group 1 | . . 1 1 . . . . Highest-Rated Group 31 | . . 31 31 . . . . Highest-Rated Ally 31 | . . 31 31 . . . . Total Orders . | . . . . . . . . Ally Attacks 1 | . . . 1 . . . . Total Damage . | . . . . . . . . Kills . | . . . . . . . . Allies Corrupted . | . . . . . . . . Allies Melted . | . . . . . . . . Intel | -11 -10 -10 -9 -9 -9 -8 -8 ------- Run | Jun Mat Min Mat Min Exi Min Mat Robot Analysis Total . | . . . . . . . . Derelict Logs Recovered . | . . . . . . . . Drone Launches . | . . . . . . . . Drone Recoveries . | . . . . . . . . Exploration | -11 -10 -10 -9 -9 -9 -8 -8 ------------- Run | Jun Mat Min Mat Min Exi Min Mat Turns Passed 1365 | 84 331 272 80 18 121 55 404 Spaces Moved 2079 | 57 218 425 218 59 377 176 549 Core 8 | 2 . . . . . . 6 Treads . | . . . . . . . . Legs . | . . . . . . . . Wheels 394 | 55 218 121 . . . . . Hover . | . . . . . . . . Flight 1677 | . . 304 218 59 377 176 543 Fastest Speed 28 | 50 90 37 31 31 31 31 28 Average Speed 43 | 88 92 52 31 31 31 31 32 Slowest Speed 360 | 100 115 360 31 31 31 31 120 Overloaded Moves . | . . . . . . . . Propulsion Burnouts . | . . . . . . . . Robots Hopped 10 | . . 6 1 . . 3 . Cave-ins Triggered . | . . . . . . . . Exploration Rate (%) 38 | 4 40 79 20 17 79 54 15 Regions Visited 7 Branch Regions 4 Pre-discovered Areas 1 | . . . . . 1 . . Known Exits Taken 2 | . . 1 . . . 1 . Unknown Exits Taken 5 | 1 1 . 1 1 1 . . Scrap Searched 1 | . . 1 . . . . . Spaces Dug 17 | . . . . . . . 17 Terrain Destroyed 49 | . . 3 . . . . 46 Melee 17 | . . . . . . . 17 Projectile . | . . . . . . . . AOE 32 | . . 3 . . . . 29 Terrain Rammed . | . . . . . . . . Walls Destroyed . | . . . . . . . . Machines Disabled . | . . . . . . . . Actions | -11 -10 -10 -9 -9 -9 -8 -8 --------- Run | Jun Mat Min Mat Min Exi Min Mat Total 2374 | 79 275 452 226 58 380 172 732 Wait 140 | . 2 4 4 . . . 130 Move 2054 | 56 217 414 215 58 376 169 549 Hop 8 | . . 4 1 . . 3 . Pick Up 23 | 7 3 6 1 . 4 . 2 Fast Attach 14 | 6 3 2 1 . . . 2 Attach 13 | . 3 1 3 . . . 6 Detach 5 | . 2 . . . . . 3 Swap 3 | . 1 1 . . . . 1 Drop 14 | . . 11 . . . . 3 Fire 79 | 10 44 9 1 . . . 15 Melee 20 | . . . . . . . 20 Ram 1 | . . . . . . . 1 Kick . | . . . . . . . . Crush . | . . . . . . . . Escape Stasis . | . . . . . . . . Rewire . | . . . . . . . . Trap . | . . . . . . . . Miscellaneous . | . . . . . . . . Route ------- -11/Junkyard -10/Materials (discovered 4 exits: *Mat x3 / [*Min]) -10/Mines (discovered 2 exits: *Mat x2) -9/Materials (discovered 4 exits: Mat x3 / [*Min]) -9/Mines -9/Exiles -8/Mines -8/Materials History --------- Turn | Location | Event 5 | -11/Junkyard | Discovered new exit (range 16) 85 | -11/Junkyard | Entered Materials 198 | -10/Materials | Discovered new exit (range 3) 305 | -10/Materials | Build established: Mutant 375 | -10/Materials | Discovered new exit (range 10) 404 | -10/Materials | Identified exit to Materials 416 | -10/Materials | Entered Mines 434 | -10/Mines | Discovered exit to Materials (range 11) 488 | -10/Mines | Core integrity fell below 50% 668 | -10/Mines | Received a Rocket Launcher from a helpful Derelict 678 | -10/Mines | Received a Mining Laser from a helpful Derelict 678 | -10/Mines | Discovered exit to Materials (range 6) 688 | -10/Mines | Entered Materials 688 | -9/Materials | Accompanied by 1 ally 688 | -9/Materials | Evolved 2 slots: Propulsion x2 712 | -9/Materials | Identified exit to Materials 766 | -9/Materials | Discovered new exit (range 8) 768 | -9/Materials | Entered Mines 769 | -9/Mines | Assembled infested the area 785 | -9/Mines | Deemed a non-threat by the Exiles lab entrance 785 | -9/Mines | Discovered new exit (range 5) 786 | -9/Mines | Entered Exiles 797 | -9/Exiles | Met 8R-AWN 802 | -9/Exiles | Met EX-HEX 821 | -9/Exiles | Met EX-DEC 828 | -9/Exiles | Visited The Gauntlet 843 | -9/Exiles | Learned location of Zion (-6) 858 | -9/Exiles | Met EX-BIN 864 | -9/Exiles | Aligned with FarCom system 865 | -9/Exiles | Given EX-Vault access code 872 | -9/Exiles | Opened EX-Vault 874 | -9/Exiles | Found Modified TNC 881 | -9/Exiles | Warned to stay clear of 0b10 Research branches 904 | -9/Exiles | Discovered new exit (range 14) 907 | -9/Exiles | Left Exiles lab with Modified TNC 907 | -9/Exiles | Entered Mines 959 | -8/Mines | Discovered exit to Materials (range 10) 962 | -8/Mines | Entered Materials 962 | -8/Materials | Evolved 2 slots: Propulsion x1, Utility x1 988 | -8/Materials | Build established: Scavenger-Sprinter 1345 | -8/Materials | Core integrity fell below 50% 1356 | -8/Materials | Core integrity fell below 20% 1366 | -8/Materials | Destroyed by H-61 Shepherd with Heavy Assault Cannon Last Messages --------------- 01345_ U-05 Engineer lays Concrete. 01347_ Hvy. Flail severed. 01347_ U-05 Engineer lays Concrete. 01347_ Slammed into C-17 Slicer. 01347_ Destabilizing: Core damaged (-5). 01347_ U-05 Engineer lays Concrete. 01348_ U-05 Engineer builds a Wall. 01353_ C-17 Slicer destroyed. 01354_ R-06 Scavenger collects Flight Unit. 01355_ Imp. EM Shotgun destroyed. 01358_ U-05 Engineer lays Concrete. 01358_ R-06 Scavenger collects Lgt. Assault Rifle. 01359_ U-05 Engineer lays Concrete. 01360_ U-05 Engineer builds a Wall. 01361_ R-06 Scavenger collects Lgt. Assault Rifle. 01363_ U-05 Engineer lays Concrete. 01364_ Sml. Laser severed. 01364_ U-05 Engineer lays Concrete. 01366_ Modified TNC destroyed. 01366_ Critical hit (Blast). Map ----- +----------------------------------------------------+ | | | | | | | | | ?????????????????????????????????????????????????? | | ?????????????????????????????????????????????????? | | ?????????????????????????????????????????????????? | | ?????????????????????????????????????????????????? | | ????????????????????##???????????????????????????? | | ?????????????????????????????????????????????????? | | ?????????????????????????????????????????????????? | | ???????????????#????????????#????????????????????? | | ?????????????????????########????????????????????? | | ?????????????#???????#!![[!!#????????????????????? | | ?????????????????????#! [[!!#????????????????????? | | ?????????????????????# #??????????????#?????? | | ????????????????????##### ###??#???????????????? | | ????????????????????????# #????#??#???????##?? | | ????????????#???????????# #?????????????????#? | | ????????????????????????# ##?????????????#???? | | ????????????#????######## #??#??????????#???#? | | ?????????????????# ^ + #????????#??######## | | ?????????????????# T # #??????#?#??# # | | ????? ?? ????????# # % #??##????#### # // | | ?????????????????# # #???????##! # / | | ????????????????## #@ #???????#! + / | | ???????????????? # # #?#??#??#! # | | ?????????????????# # / #????#??#! # | | ?????????????????# #% c[ #??????##! #### | | ????????????????"# ; !%/%#?????####! # | | ?????????????????# ; * *##????####### # | | ?????????????????# # ##??## ##### # " | | ?????????????????# # b #???# ##???# # " | | ????????????#????# # c #???## ##??# # " | | ?????????????????######## H ############ + "" | | ??????????????????????## u # # #### # "" | | ??????????????????????## ! u# ! =#! # "" | | ?????????????????????### *% *%! #### # "" | | ???????? ?????????????## %r ! = ! # "" | | ????????????#?????????## % % ###### # " | | ??????????????????????## ## # ##### # | | ?????????????????????### ## #???# # | | ??????????????????????#### ######## # #??## #### | | ?????????????????????????# # ###### #### | | ?????????????????????????# # + # | | ?????????????????????????# + ###### # | | ?????????????????????????# # #??#?# # | | ?????????????????????????# ############???# # | | ?????????????????????????# ???????????????# #### | | ????????a???????????????? ############## # | +----------------------------------------------------+ Best States ------------- Heat Dissipation 31 Coolant Potential 50 Energy Generation 10 Energy Capacity 250 Matter Stores 300 Matter Capacity 300 Sight Range 16 Terrain Scan Range 14 Terrain Scan Density 10 Evasion (%) 64 Item Schematics ----------------- None Robot Schematics ------------------ None Fabricated ------------ Nothing Alien Tech Used ----------------- None Achievements -------------- Part-time Excavator Challenges ------------ None Game ------ Seed BoreGhostDoomcannon Manual? 0 Play Time 00:25:32 Cumulative 26.7 hours Start 2023.03.08 @ 17:36:37 End 2023.03.08 @ 18:09:44 Sessions 1 Manual Loads 0 Difficulty Rogue Special Mode None Game No. 25 Rogue 25 Adventurer 0 Explorer 0 Win Type - Total 0 Types 0/0/0/0/0/0/0/0/0 Lore% 21 Gallery% 34 Achievement% 30 Wizard Run 0 Options --------- ASCII 0 Keyboard 1 Movement Vi Keybinds 0 Fullscreen 2 Font 18/SmallcapsGlow Map View 76x50 Tactical HUD 1 Map Filters NONE Filters NONE Steam 1 RUN: 00b92e6a-dfc3-47a5-a7ef-e674cba62d31